fUSD/lending_fUSD_20260507
["ID","MTS","AMOUNT","RATE_DAILY","PERIOD"]
[421779613,1778142661000,-407.24,0.00040327,90]
[421779611,1778142661000,-150.0,0.0004031,120]
[421779608,1778142661000,-973.54788223,0.000403,30]
[421779607,1778142661000,-973.54788225,0.000403,30]
[421779609,1778142661000,-973.54788223,0.000403,30]
[421779610,1778142661000,-271.14,0.00040304,120]
[421779612,1778142661000,-150.0,0.0004031,120]
[421779615,1778142661000,-617.46,0.00040327,90]
[421779614,1778142661000,-2000.0,0.00040327,90]
[421779604,1778142661000,-420.14,0.00040279,2]
[421779587,1778142661000,-276.25,0.00040217,120]
[421779565,1778142661000,-518.233601,0.0004,30]
[421779586,1778142661000,-271.14,0.00040204,120]
[421779617,1778142661000,-209.73,0.00040327,90]
[421779564,1778142661000,-214.63993676,0.0004,30]
[421779562,1778142661000,-518.233601,0.0004,30]
[421779561,1778142661000,-355.716114,0.0004,30]
[421779563,1778142661000,-518.233601,0.0004,30]
[421779573,1778142661000,-157.99482979,0.00040004,120]
[421779568,1778142661000,-202.030439,0.0004,7]
[421779566,1778142661000,-518.233601,0.0004,30]
[421779577,1778142661000,-150.73225441,0.00040004,120]
[421779571,1778142661000,-150.0,0.00040001,2]
[421779575,1778142661000,-175.85429682,0.00040004,120]
[421779576,1778142661000,-171.32881372,0.00040004,120]
[421779585,1778142661000,-271.15,0.0004018,120]
[421779569,1778142661000,-214.63993676,0.0004,10]
[421779572,1778142661000,-271.14,0.00040004,120]
[421779574,1778142661000,-171.32881372,0.00040004,120]
[421779570,1778142661000,-499.0479,0.00040001,120]
[421779579,1778142661000,-75026.91657461,0.00040017,90]
[421779580,1778142661000,-429.47548534,0.00040059,120]
[421779578,1778142661000,-310.0,0.0004001,68]
[421779589,1778142661000,-1308.07,0.00040217,120]
[421779581,1778142661000,-271.15,0.0004008,120]
[421779582,1778142661000,-271.14,0.00040104,120]
[421779583,1778142661000,-1949.42323062,0.00040108,120]
[421779584,1778142661000,-250.0,0.00040157,71]
[421779588,1778142661000,-170.51,0.00040217,120]
[421779567,1778142661000,-151.0,0.0004,28]
[421779622,1778142661000,-250.0,0.00040456,76]
[421779616,1778142661000,-221.22,0.00040327,90]
[421779621,1778142661000,-150.0,0.00040434,7]
[421779651,1778142661000,-203.31,0.00040601,90]
[421779653,1778142661000,-271.14,0.00040604,120]
[421779658,1778142661000,-304.18226393,0.00040713,120]
[421779657,1778142661000,-271.14,0.00040704,120]
[421779655,1778142661000,-154.91,0.0004069,120]
[421779650,1778142661000,-150.02,0.00040601,90]
[421779654,1778142661000,-271.15,0.0004068,120]
[421779656,1778142661000,-247210.24194142,0.000407,12]
[421779659,1778142661000,-250.0,0.0004072,81]
[421779661,1778142661000,-186.48,0.0004075,120]
[421779662,1778142661000,-13074.06,0.0004075,120]
[421779663,1778142661000,-975.4622,0.00040762,30]
[421779652,1778142661000,-247.14,0.00040601,90]
[421779664,1778142661000,-714.5770169,0.00040771,14]
[421779670,1778142661000,-150.0,0.00040795,120]
[421779665,1778142661000,-271.15,0.0004078,120]
[421779667,1778142661000,-150.0,0.00040795,120]
[421779666,1778142661000,-150.0,0.00040795,120]
[421779668,1778142661000,-150.0,0.00040795,120]
[421779672,1778142661000,-10012.81636023,0.000408,60]
[421779674,1778142661000,-500.0,0.00040804,21]
[421779671,1778142661000,-299.26451316,0.00040795,120]
[421779675,1778142661000,-1000.0,0.00040804,21]
[421779676,1778142661000,-310.0,0.00040809,83]
[421779673,1778142661000,-271.14,0.00040804,120]
[421779620,1778142661000,-271.14,0.00040404,120]
[421779669,1778142661000,-150.0,0.00040795,120]
[421779648,1778142661000,-219.8,0.00040601,90]
[421779660,1778142661000,-150.0,0.0004074,7]
[421779644,1778142661000,-7101.99,0.000406,2]
[421779649,1778142661000,-271.81,0.00040601,90]
[421779618,1778142661000,-22500.0,0.00040375,120]
[421779624,1778142661000,-152.0,0.00040494,8]
[421779619,1778142661000,-271.15,0.0004038,120]
[421779623,1778142661000,-271.15,0.0004048,120]
[421779625,1778142661000,-163.60673109,0.000405,120]
[421779634,1778142661000,-171.32881372,0.00040552,120]
[421779636,1778142661000,-157.99482979,0.00040552,120]
[421779626,1778142661000,-271.14,0.00040504,120]
[421779632,1778142661000,-289.27167724,0.00040549,120]
[421779628,1778142661000,-188.02659021,0.00040524,120]
[421779630,1778142661000,-2000.0,0.00040544,120]
[421779627,1778142661000,-501.0,0.00040512,16]
[421779635,1778142661000,-175.85429682,0.00040552,120]
[421779645,1778142661000,-868.22,0.000406,2]
[421779647,1778142661000,-160.0,0.000406,75]
[421779629,1778142661000,-316.08,0.00040539,90]
[421779646,1778142661000,-210.0,0.000406,120]
[421779643,1778142661000,-1576.25,0.000406,2]
[421779641,1778142661000,-348.55,0.000406,120]
[421779642,1778142661000,-1602.91,0.000406,2]
[421779638,1778142661000,-171.32881371,0.00040552,120]
[421779640,1778142661000,-271.15,0.0004058,120]
[421779637,1778142661000,-171.32881372,0.00040552,120]
[421779631,1778142661000,-1560.0,0.00040548,30]
[421779633,1778142661000,-157.99482979,0.00040552,120]
[421779639,1778142661000,-150.73225441,0.00040552,120]
[421779710,1778142662000,-500.0,0.00041,45]
[421779718,1778142662000,-5052.2429514,0.00041,10]
[421779716,1778142662000,-250.19,0.00041,120]
[421779715,1778142662000,-14512.76679193,0.00041,12]
[421779719,1778142662000,-50000.0,0.00041,60]
[421779709,1778142662000,-500.0,0.00041,45]
[421779713,1778142662000,-4167.24418502,0.00041,30]
[421779714,1778142662000,-500.0,0.00041,120]
[421779711,1778142662000,-1664.97863847,0.00041,30]
[421779708,1778142662000,-500.0,0.00041,45]
[421779717,1778142662000,-547.06357788,0.00041,30]
[421779712,1778142662000,-1801.16944695,0.00041,2]
[421779720,1778142662000,-3720.639,0.00041,7]
[421779733,1778142662000,-50000.0,0.00041068,60]
[421779728,1778142662000,-1009.17,0.00041017,120]
[421779724,1778142662000,-161.0,0.00041,120]
[421779722,1778142662000,-199.96695857,0.00041,2]
[421779725,1778142662000,-200.99645,0.00041,120]
[421779731,1778142662000,-1142.5,0.00041041,120]
[421779732,1778142662000,-250.0,0.00041041,100]
[421779729,1778142662000,-860.26,0.00041017,120]
[421779721,1778142662000,-21426.93692842,0.00041,120]
[421779727,1778142662000,-271.14,0.00041004,120]
[421779726,1778142662000,-150.0,0.00041001,2]
[421779730,1778142662000,-281.19,0.00041017,120]
[421779734,1778142662000,-271.15,0.0004108,120]
[421779705,1778142662000,-50000.0,0.00041,56]
[421779723,1778142662000,-25000.0,0.00041,120]
[421779702,1778142662000,-666.61993067,0.00040991,30]
[421779682,1778142662000,-150.0,0.00040832,90]
[421779704,1778142662000,-253.3,0.00040999,2]
[421779736,1778142662000,-217.21414087,0.00041095,120]
[421779679,1778142662000,-150.0,0.00040832,90]
[421779681,1778142662000,-345.35,0.00040832,90]
[421779678,1778142662000,-175.85429682,0.00040826,120]
[421779680,1778142662000,-1299.63,0.00040832,90]
[421779677,1778142662000,-171.32881372,0.00040826,120]
[421779694,1778142662000,-287148.0,0.0004095,60]
[421779684,1778142662000,-522.64,0.00040832,90]
[421779688,1778142662000,-150.0,0.00040834,2]
[421779685,1778142662000,-366.34,0.00040832,90]
[421779686,1778142662000,-287.1,0.00040832,90]
[421779683,1778142662000,-289.77,0.00040832,90]
[421779689,1778142662000,-429.37548533,0.00040847,120]
[421779692,1778142662000,-432.9,0.000409,30]
[421779691,1778142662000,-271.15,0.0004088,120]
[421779687,1778142662000,-250.06,0.00040832,90]
[421779690,1778142662000,-150.0,0.00040848,2]
[421779693,1778142662000,-271.14,0.00040904,120]
[421779696,1778142662000,-271.15,0.0004098,120]
[421779695,1778142662000,-250.0,0.00040953,87]
[421779706,1778142662000,-31852.05493275,0.00041,30]
[421779707,1778142662000,-500.0,0.00041,45]
[421779701,1778142662000,-150.0,0.00040991,30]
[421779699,1778142662000,-150.0,0.00040991,30]
[421779700,1778142662000,-3248.74369993,0.00040991,30]
[421779703,1778142662000,-400.0,0.00040997,2]
[421779697,1778142662000,-150.0,0.00040991,30]
[421779698,1778142662000,-1262.48018763,0.00040991,30]
[421779745,1778142662000,-500.0,0.00041095,2]
[421779793,1778142662000,-249.39010003,0.00041095,2]
[421779744,1778142662000,-500.0,0.00041095,2]
[421779781,1778142662000,-300.0,0.00041095,2]
[421779772,1778142662000,-500.0,0.00041095,2]
[421779770,1778142662000,-500.0,0.00041095,2]
[421779773,1778142662000,-500.0,0.00041095,2]
[421779777,1778142662000,-300.0,0.00041095,2]
[421779775,1778142662000,-284.82822843,0.00041095,2]
[421779780,1778142662000,-300.0,0.00041095,2]
[421779774,1778142662000,-500.0,0.00041095,2]
[421779776,1778142662000,-300.0,0.00041095,2]
[421779779,1778142662000,-300.0,0.00041095,2]
[421779778,1778142662000,-300.0,0.00041095,2]
[421779782,1778142662000,-300.0,0.00041095,2]
[421779794,1778142662000,-522.85,0.00041095,2]
[421779783,1778142662000,-300.0,0.00041095,2]
[421779788,1778142662000,-1000.0,0.00041095,7]
[421779789,1778142662000,-1000.0,0.00041095,7]
[421779786,1778142662000,-300.0,0.00041095,2]
[421779785,1778142662000,-300.0,0.00041095,2]
[421779790,1778142662000,-927.14415902,0.00041095,7]
[421779787,1778142662000,-155.41224873,0.00041095,2]
[421779792,1778142662000,-500.0,0.00041095,2]
[421779791,1778142662000,-500.0,0.00041095,2]
[421779796,1778142662000,-522.85,0.00041095,2]
[421779795,1778142662000,-522.85,0.00041095,2]
[421779797,1778142662000,-522.85,0.00041095,2]
[421779741,1778142662000,-500.0,0.00041095,2]
[421779798,1778142662000,-522.85,0.00041095,2]
[421779771,1778142662000,-500.0,0.00041095,2]
[421779766,1778142662000,-500.0,0.00041095,2]
[421779784,1778142662000,-300.0,0.00041095,2]
[421779765,1778142662000,-500.0,0.00041095,2]
[421779737,1778142662000,-500.0,0.00041095,2]
[421779735,1778142662000,-1000.0,0.00041095,2]
[421779763,1778142662000,-500.0,0.00041095,2]
[421779740,1778142662000,-500.0,0.00041095,2]
[421779742,1778142662000,-500.0,0.00041095,2]
[421779739,1778142662000,-500.0,0.00041095,2]
[421779743,1778142662000,-500.0,0.00041095,2]
[421779738,1778142662000,-500.0,0.00041095,2]
[421779747,1778142662000,-500.0,0.00041095,2]
[421779746,1778142662000,-500.0,0.00041095,2]
[421779757,1778142662000,-500.0,0.00041095,2]
[421779755,1778142662000,-500.0,0.00041095,2]
[421779749,1778142662000,-500.0,0.00041095,2]
[421779754,1778142662000,-500.0,0.00041095,2]
[421779748,1778142662000,-500.0,0.00041095,2]
[421779760,1778142662000,-500.0,0.00041095,2]
[421779761,1778142662000,-500.0,0.00041095,2]
[421779768,1778142662000,-500.0,0.00041095,2]
[421779753,1778142662000,-500.0,0.00041095,2]
[421779767,1778142662000,-500.0,0.00041095,2]
[421779764,1778142662000,-500.0,0.00041095,2]
[421779758,1778142662000,-500.0,0.00041095,2]
[421779769,1778142662000,-317.0340236,0.00041095,2]
[421779762,1778142662000,-500.0,0.00041095,2]
[421779750,1778142662000,-500.0,0.00041095,2]
[421779756,1778142662000,-500.0,0.00041095,2]
[421779752,1778142662000,-500.0,0.00041095,2]
[421779751,1778142662000,-500.0,0.00041095,2]
[421779759,1778142662000,-500.0,0.00041095,2]
[421779842,1778142663000,-218.159897,0.00041096,120]
[421779841,1778142663000,-216.024935,0.00041096,120]
[421779840,1778142663000,-151.0,0.00041096,120]
[421779838,1778142663000,-402.263914,0.00041096,7]
[421779845,1778142663000,-155.702513,0.00041096,120]
[421779829,1778142663000,-780.0,0.00041096,120]
[421779843,1778142663000,-3639.140122,0.00041096,120]
[421779844,1778142663000,-218.159897,0.00041096,120]
[421779833,1778142663000,-800.0,0.00041096,30]
[421779835,1778142663000,-402.263914,0.00041096,7]
[421779834,1778142663000,-800.0,0.00041096,30]
[421779837,1778142663000,-402.263914,0.00041096,7]
[421779836,1778142663000,-861.0,0.00041096,30]
[421779839,1778142663000,-402.263914,0.00041096,7]
[421779850,1778142663000,-3639.140122,0.00041096,120]
[421779847,1778142663000,-218.159897,0.00041096,120]
[421779846,1778142663000,-3639.140122,0.00041096,120]
[421779854,1778142663000,-151.0,0.00041096,120]
[421779856,1778142663000,-238.489634,0.00041096,120]
[421779857,1778142663000,-151.0,0.00041096,120]
[421779853,1778142663000,-151.0,0.00041096,120]
[421779855,1778142663000,-151.0,0.00041096,120]
[421779852,1778142663000,-151.000003,0.00041096,120]
[421779851,1778142663000,-162.014436,0.00041096,120]
[421779858,1778142663000,-151.0,0.00041096,120]
[421779849,1778142663000,-218.159897,0.00041096,120]
[421779860,1778142663000,-648.210097,0.00041096,120]
[421779859,1778142663000,-151.0,0.00041096,120]
[421779828,1778142663000,-578.0,0.00041096,60]
[421779848,1778142663000,-3639.140122,0.00041096,120]
[421779827,1778142663000,-173.10659581,0.00041096,30]
[421779799,1778142663000,-522.85,0.00041095,2]
[421779826,1778142663000,-150.1,0.00041096,120]
[421779870,1778142663000,-422.29112731,0.00041096,2]
[421779806,1778142663000,-522.85,0.00041095,2]
[421779805,1778142663000,-522.85,0.00041095,2]
[421779803,1778142663000,-522.85,0.00041095,2]
[421779802,1778142663000,-522.85,0.00041095,2]
[421779800,1778142663000,-522.85,0.00041095,2]
[421779801,1778142663000,-522.85,0.00041095,2]
[421779804,1778142663000,-522.85,0.00041095,2]
[421779818,1778142663000,-500.0,0.00041095,2]
[421779808,1778142663000,-522.85,0.00041095,2]
[421779810,1778142663000,-522.85,0.00041095,2]
[421779807,1778142663000,-522.85,0.00041095,2]
[421779819,1778142663000,-500.0,0.00041095,2]
[421779809,1778142663000,-522.85,0.00041095,2]
[421779812,1778142663000,-522.85,0.00041095,2]
[421779811,1778142663000,-522.85,0.00041095,2]
[421779813,1778142663000,-522.85,0.00041095,2]
[421779816,1778142663000,-522.85,0.00041095,2]
[421779815,1778142663000,-522.85,0.00041095,2]
[421779817,1778142663000,-522.94937397,0.00041095,2]
[421779814,1778142663000,-522.85,0.00041095,2]
[421779821,1778142663000,-500.0,0.00041095,2]
[421779832,1778142663000,-800.0,0.00041096,30]
[421779831,1778142663000,-800.0,0.00041096,30]
[421779822,1778142663000,-500.0,0.00041095,2]
[421779823,1778142663000,-500.0,0.00041095,2]
[421779820,1778142663000,-500.0,0.00041095,2]
[421779825,1778142663000,-1204.81,0.00041096,120]
[421779824,1778142663000,-637.97400374,0.00041095,2]
[421779830,1778142663000,-800.0,0.00041096,30]
[421779868,1778142663000,-161.817855,0.00041096,120]
[421779920,1778142663000,-501.0,0.00041149,17]
[421779867,1778142663000,-161.817855,0.00041096,120]
[421779898,1778142663000,-157.51429,0.00041096,120]
[421779903,1778142663000,-151.0,0.00041096,120]
[421779899,1778142663000,-151.0,0.00041096,120]
[421779900,1778142663000,-151.0,0.00041096,120]
[421779902,1778142663000,-268.611241,0.00041096,120]
[421779901,1778142663000,-151.0,0.00041096,120]
[421779907,1778142663000,-157.99482979,0.000411,120]
[421779904,1778142663000,-157.685275,0.00041096,120]
[421779909,1778142663000,-175.85429682,0.000411,120]
[421779905,1778142663000,-176.89952052,0.00041096,60]
[421779910,1778142663000,-85060.0,0.000411,90]
[421779908,1778142663000,-171.32881372,0.000411,120]
[421779912,1778142663000,-176.04566983,0.000411,120]
[421779922,1778142663000,-250.0,0.00041158,90]
[421779923,1778142663000,-154.91,0.0004116,120]
[421779914,1778142663000,-500.0,0.000411,30]
[421779913,1778142663000,-176.04,0.000411,120]
[421779916,1778142663000,-271.14,0.00041104,120]
[421779911,1778142663000,-210.0,0.000411,120]
[421779918,1778142663000,-1000.0,0.00041111,120]
[421779919,1778142663000,-55000.0,0.0004112,120]
[421779915,1778142663000,-1000.0,0.000411,30]
[421779917,1778142663000,-237.0,0.00041111,120]
[421779921,1778142663000,-1000.0,0.0004115,2]
[421779926,1778142663000,-2500.0,0.000412,120]
[421779924,1778142663000,-271.15,0.0004118,120]
[421779925,1778142663000,-3292.6588,0.00041197,30]
[421779927,1778142663000,-154.0,0.000412,120]
[421779862,1778142663000,-648.210097,0.00041096,120]
[421779890,1778142663000,-824.239094,0.00041096,120]
[421779888,1778142663000,-504.525662,0.00041096,120]
[421779906,1778142663000,-176.89952052,0.00041096,120]
[421779891,1778142663000,-824.239094,0.00041096,120]
[421779865,1778142663000,-161.817855,0.00041096,120]
[421779895,1778142663000,-151.0,0.00041096,120]
[421779863,1778142663000,-648.210097,0.00041096,120]
[421779861,1778142663000,-165.051349,0.00041096,120]
[421779869,1778142663000,-151.0,0.00041096,120]
[421779871,1778142663000,-151.0,0.00041096,120]
[421779864,1778142663000,-648.210097,0.00041096,120]
[421779866,1778142663000,-161.817855,0.00041096,120]
[421779872,1778142663000,-151.0,0.00041096,120]
[421779884,1778142663000,-151.0,0.00041096,120]
[421779883,1778142663000,-200.0,0.00041096,120]
[421779875,1778142663000,-590.008365,0.00041096,120]
[421779874,1778142663000,-152.378513,0.00041096,10]
[421779878,1778142663000,-257.163956,0.00041096,60]
[421779880,1778142663000,-257.163956,0.00041096,60]
[421779873,1778142663000,-590.008365,0.00041096,120]
[421779877,1778142663000,-590.008365,0.00041096,120]
[421779889,1778142663000,-165.360989,0.00041096,120]
[421779879,1778142663000,-257.163956,0.00041096,60]
[421779892,1778142663000,-824.239094,0.00041096,120]
[421779887,1778142663000,-504.525662,0.00041096,120]
[421779894,1778142663000,-151.0,0.00041096,120]
[421779885,1778142663000,-504.525662,0.00041096,120]
[421779897,1778142663000,-151.0,0.00041096,120]
[421779893,1778142663000,-824.239094,0.00041096,120]
[421779896,1778142663000,-151.0,0.00041096,120]
[421779881,1778142663000,-165.796964,0.00041096,120]
[421779876,1778142663000,-590.008365,0.00041096,120]
[421779882,1778142663000,-257.163956,0.00041096,60]
[421779886,1778142663000,-504.525662,0.00041096,120]
[421779964,1778142664000,-500.0,0.000415,45]
[421779971,1778142664000,-500.0,0.000415,45]
[421779966,1778142664000,-500.0,0.000415,45]
[421779977,1778142664000,-500.0,0.000415,45]
[421779967,1778142664000,-500.0,0.000415,45]
[421779976,1778142664000,-500.0,0.000415,45]
[421779958,1778142664000,-500.0,0.000415,45]
[421779972,1778142664000,-500.0,0.000415,45]
[421779975,1778142664000,-500.0,0.000415,45]
[421779965,1778142664000,-500.0,0.000415,45]
[421779961,1778142664000,-500.0,0.000415,45]
[421779968,1778142664000,-500.0,0.000415,45]
[421779969,1778142664000,-500.0,0.000415,45]
[421779970,1778142664000,-500.0,0.000415,45]
[421779985,1778142664000,-400.0,0.000415,120]
[421779973,1778142664000,-500.0,0.000415,45]
[421779983,1778142664000,-53846.96,0.000415,120]
[421779982,1778142664000,-500.0,0.000415,45]
[421779978,1778142664000,-500.0,0.000415,45]
[421779979,1778142664000,-364.91004741,0.000415,45]
[421779981,1778142664000,-500.0,0.000415,45]
[421779980,1778142664000,-500.0,0.000415,45]
[421779990,1778142664000,-868.22,0.000415,2]
[421779984,1778142664000,-2000.0,0.000415,90]
[421779987,1778142664000,-1602.91,0.000415,2]
[421779989,1778142664000,-7101.99,0.000415,2]
[421779988,1778142664000,-1576.25,0.000415,2]
[421779957,1778142664000,-500.0,0.000415,45]
[421779974,1778142664000,-500.0,0.000415,45]
[421779953,1778142664000,-500.0,0.00041499,30]
[421779928,1778142664000,-1602.91,0.000412,2]
[421779962,1778142664000,-500.0,0.000415,45]
[421779986,1778142664000,-10061.88856237,0.000415,120]
[421779930,1778142664000,-7101.99,0.000412,2]
[421779929,1778142664000,-1576.25,0.000412,2]
[421779937,1778142664000,-267.83,0.00041233,60]
[421779933,1778142664000,-214.63993676,0.000412,10]
[421779935,1778142664000,-1000.0,0.00041205,2]
[421779936,1778142664000,-26465.87492679,0.00041209,70]
[421779931,1778142664000,-868.22,0.000412,2]
[421779932,1778142664000,-1705.01,0.000412,120]
[421779934,1778142664000,-271.14,0.00041204,120]
[421779940,1778142664000,-271.15,0.0004128,120]
[421779938,1778142664000,-1005.42441761,0.0004126,2]
[421779949,1778142664000,-202.45533501,0.0004144,60]
[421779950,1778142664000,-258.80758289,0.0004144,13]
[421779959,1778142664000,-500.0,0.000415,45]
[421779941,1778142664000,-271.14,0.00041304,120]
[421779943,1778142664000,-1015.17,0.0004135,120]
[421779945,1778142664000,-55000.0,0.000414,120]
[421779942,1778142664000,-250.0,0.0004134,92]
[421779947,1778142664000,-310.0,0.00041422,91]
[421779944,1778142664000,-271.15,0.0004138,120]
[421779946,1778142664000,-271.14,0.00041404,120]
[421779948,1778142664000,-565.28297352,0.00041432,31]
[421779951,1778142664000,-250.0,0.00041459,110]
[421779960,1778142664000,-500.0,0.000415,45]
[421779956,1778142664000,-500.0,0.000415,45]
[421779955,1778142664000,-250.0,0.000415,95]
[421779952,1778142664000,-271.15,0.0004148,120]
[421779954,1778142664000,-1672.7364795,0.00041499,30]
[421779963,1778142664000,-500.0,0.000415,45]
[421779939,1778142664000,-250.0,0.00041272,110]
[421779992,1778142664000,-18745.75812,0.000415,7]
[421779999,1778142664000,-294.68,0.00041517,120]
[421780002,1778142664000,-500.0,0.00041533,110]
[421780039,1778142664000,-271.15,0.0004168,120]
[421780028,1778142664000,-201.11,0.00041617,120]
[421780040,1778142664000,-200.0,0.0004169,120]
[421780030,1778142664000,-203.62,0.00041628,30]
[421780034,1778142664000,-461.61758883,0.00041641,120]
[421780032,1778142664000,-500.0,0.00041639,92]
[421780031,1778142664000,-154.91,0.0004163,120]
[421780038,1778142664000,-289.37,0.00041672,30]
[421780037,1778142664000,-385.81,0.00041659,30]
[421780041,1778142664000,-500.0,0.00041693,30]
[421780033,1778142664000,-250.0,0.00041641,99]
[421780035,1778142664000,-346.21319162,0.00041641,120]
[421780036,1778142664000,-1560.0,0.00041644,120]
[421780043,1778142664000,-150.0,0.00041693,120]
[421780053,1778142664000,-1006.09,0.0004175,120]
[421780054,1778142664000,-250.0,0.00041766,104]
[421780042,1778142664000,-1613.0535,0.00041693,30]
[421780055,1778142664000,-1000.0,0.00041773,120]
[421780044,1778142664000,-1142.5,0.00041694,120]
[421780045,1778142664000,-500.0,0.00041699,120]
[421779991,1778142664000,-1000.0,0.000415,120]
[421780052,1778142664000,-3842.68406608,0.00041747,2]
[421780050,1778142664000,-250.0,0.00041731,120]
[421780048,1778142664000,-271.14,0.00041704,120]
[421780049,1778142664000,-320.93,0.00041719,30]
[421780047,1778142664000,-50610.1,0.000417,31]
[421780051,1778142664000,-202.75,0.00041732,30]
[421780056,1778142664000,-271.15,0.0004178,120]
[421780057,1778142664000,-501.0,0.00041786,18]
[421780029,1778142664000,-1000.0,0.00041626,120]
[421780025,1778142664000,-157.94118008,0.00041612,2]
[421780046,1778142664000,-210.0,0.000417,120]
[421780023,1778142664000,-271.14,0.00041604,120]
[421780022,1778142664000,-160.0,0.000416,78]
[421780003,1778142664000,-1037.36187354,0.00041555,120]
[421779995,1778142664000,-411.57,0.00041517,120]
[421779997,1778142664000,-235.36,0.00041517,120]
[421779996,1778142664000,-858.83,0.00041517,120]
[421779993,1778142664000,-271.14,0.00041504,120]
[421780000,1778142664000,-229.09,0.00041517,120]
[421780001,1778142664000,-150.01,0.00041517,120]
[421779998,1778142664000,-379.61,0.00041517,120]
[421780004,1778142664000,-150.0,0.00041558,120]
[421780006,1778142664000,-47700.32734803,0.0004158,120]
[421780008,1778142664000,-500.0,0.00041599,78]
[421780007,1778142664000,-500.0,0.00041599,36]
[421780009,1778142664000,-1125.55469133,0.00041599,50]
[421780010,1778142664000,-1120.10611634,0.00041599,50]
[421779994,1778142664000,-259.01,0.00041517,120]
[421780012,1778142664000,-1015.23716405,0.00041599,50]
[421780024,1778142664000,-250.0,0.0004161,110]
[421780005,1778142664000,-271.15,0.0004158,120]
[421780020,1778142664000,-868.22,0.000416,2]
[421780026,1778142664000,-190.75,0.00041617,120]
[421780027,1778142664000,-228.93,0.00041617,120]
[421780019,1778142664000,-7101.99,0.000416,2]
[421780021,1778142664000,-31770.36352292,0.000416,120]
[421780018,1778142664000,-1576.25,0.000416,2]
[421780014,1778142664000,-1102.12272045,0.00041599,50]
[421780015,1778142664000,-1069.85913517,0.00041599,50]
[421780016,1778142664000,-1013.52838304,0.00041599,50]
[421780011,1778142664000,-1075.93124118,0.00041599,50]
[421780017,1778142664000,-1602.91,0.000416,2]
[421780013,1778142664000,-1129.46042156,0.00041599,50]
[421780089,1778142665000,-35793.63359776,0.000419,120]
[421780088,1778142665000,-4516.25683675,0.000419,120]
[421780086,1778142665000,-310.0,0.00041894,93]
[421780085,1778142665000,-500.0,0.00041893,60]
[421780093,1778142665000,-153.16213815,0.000419,120]
[421780092,1778142665000,-10000.0,0.000419,120]
[421780090,1778142665000,-15593.8179396,0.000419,30]
[421780084,1778142665000,-157.94118008,0.00041886,2]
[421780083,1778142665000,-931.02360246,0.0004188,120]
[421780087,1778142665000,-20000.0,0.000419,120]
[421780097,1778142665000,-153.16213814,0.000419,120]
[421780094,1778142665000,-153.16213814,0.000419,120]
[421780095,1778142665000,-153.16213814,0.000419,120]
[421780105,1778142665000,-271.14,0.00041904,120]
[421780096,1778142665000,-153.16213814,0.000419,120]
[421780098,1778142665000,-153.16213814,0.000419,120]
[421780100,1778142665000,-153.16213814,0.000419,120]
[421780101,1778142665000,-153.16213814,0.000419,120]
[421780099,1778142665000,-153.16213814,0.000419,120]